fUSD/lending_fUSD_20250228
["ID","MTS","AMOUNT","RATE_DAILY","PERIOD"]
[354805194,1740708645740,-500.0,0.00055342,120]
[354805195,1740708645749,-500.0,0.00055342,120]
[354805197,1740708645759,-510.54,0.00055342,120]
[354805199,1740708645768,-500.0,0.00055342,120]
[354805201,1740708645778,-500.0,0.00055342,120]
[354805203,1740708645787,-500.0,0.00055342,120]
[354805205,1740708645796,-500.0,0.00055342,120]
[354805207,1740708645807,-500.0,0.00055342,120]
[354805209,1740708645816,-478.14331273,0.00055342,120]
[354805211,1740708645825,-405.71801045,0.00055342,120]
[354805212,1740708645834,-500.0,0.00055342,120]
[354805213,1740708645843,-579.62,0.00055342,120]
[354805214,1740708645852,-500.0,0.00055342,120]
[354805215,1740708645862,-500.0,0.00055342,120]
[354805216,1740708645871,-543.13547204,0.00055342,120]
[354805217,1740708645885,-500.0,0.00055342,120]
[354805218,1740708645894,-597.45458364,0.00055342,120]
[354805219,1740708645903,-716.47,0.00055342,120]
[354805220,1740708645913,-500.0,0.00055342,10]
[354805221,1740708645923,-542.91118343,0.00055342,120]
[354805222,1740708645932,-500.0,0.00055342,120]
[354805223,1740708645942,-500.0,0.00055342,120]
[354805224,1740708645952,-500.0,0.00055342,120]
[354805225,1740708645962,-500.0,0.00055342,120]
[354805226,1740708645972,-500.0,0.00055342,2]
[354805227,1740708645981,-292.46891161,0.00055342,100]
[354805228,1740708645993,-1980.51,0.00055342,120]
[354805229,1740708646002,-500.0,0.00055342,120]
[354805230,1740708646011,-245.5945266,0.00055342,120]
[354805231,1740708646020,-500.0,0.00055342,120]
[354805232,1740708646030,-609.77,0.00055342,120]
[354805233,1740708646040,-500.0,0.00055342,120]
[354805234,1740708646049,-500.0,0.00055342,120]
[354805235,1740708646060,-355.27,0.00055342,120]
[354805236,1740708646070,-500.0,0.00055342,120]
[354805237,1740708646080,-500.0,0.00055342,120]
[354805238,1740708646090,-351.87496,0.00055342,120]
[354805239,1740708646100,-886.91701801,0.00055516,15]
[354805240,1740708646109,-500.0,0.00055615,120]
[354805241,1740708646119,-500.0,0.00055615,120]
[354805242,1740708646128,-500.0,0.00055615,120]
[354805243,1740708646137,-321.79,0.00055615,120]
[354805244,1740708646147,-451.32,0.00055615,120]
[354805245,1740708646156,-500.0,0.00055615,120]
[354805246,1740708646166,-393.84,0.00055615,120]
[354805247,1740708646175,-500.0,0.00055615,120]
[354805248,1740708646184,-500.0,0.00055615,120]
[354805249,1740708646194,-500.0,0.00055615,120]
[354805250,1740708646203,-641.23893855,0.00055615,120]
[354805251,1740708646212,-500.0,0.00055615,120]
[354805252,1740708646221,-500.0,0.00055615,120]
[354805253,1740708646230,-500.0,0.00055615,120]
[354805254,1740708646240,-500.0,0.00055615,120]
[354805255,1740708646250,-268.72991164,0.00055615,120]
[354805256,1740708646260,-500.0,0.00055615,120]
[354805257,1740708646269,-500.0,0.00055615,120]
[354805258,1740708646278,-500.0,0.00055615,120]
[354805259,1740708646287,-500.0,0.00055615,120]
[354805260,1740708646296,-500.0,0.00055615,120]
[354805261,1740708646305,-500.0,0.00055615,120]
[354805262,1740708646314,-649.18294086,0.00055615,120]
[354805263,1740708646323,-500.0,0.00055615,120]
[354805264,1740708646332,-500.0,0.00055615,120]
[354805265,1740708646341,-500.0,0.00055615,120]
[354805266,1740708646351,-441.22,0.00055615,120]
[354805267,1740708646360,-500.0,0.00055615,120]
[354805268,1740708646369,-500.0,0.00055615,120]
[354805269,1740708646378,-566.28,0.00055615,120]
[354805270,1740708646387,-500.0,0.00055615,120]
[354805271,1740708646397,-500.0,0.00055615,30]
[354805272,1740708646406,-500.0,0.00055615,120]
[354805273,1740708646416,-500.0,0.00055615,120]
[354805274,1740708646426,-500.0,0.00055615,120]
[354805275,1740708646435,-500.0,0.00055615,120]
[354805276,1740708646445,-500.0,0.00055615,120]
[354805277,1740708646454,-500.0,0.00055615,120]
[354805278,1740708646464,-500.0,0.00055615,120]
[354805279,1740708646473,-500.0,0.00055615,120]
[354805280,1740708646483,-1040.93,0.00055615,120]
[354805281,1740708646495,-500.0,0.00055615,120]
[354805282,1740708646504,-500.0,0.00055615,120]
[354805283,1740708646513,-440.9,0.00055615,120]
[354805284,1740708646523,-500.0,0.00055615,120]
[354805285,1740708646533,-500.0,0.00055615,120]
[354805286,1740708646543,-500.0,0.00055615,120]
[354805287,1740708646552,-265.72306159,0.00055615,120]
[354805288,1740708646562,-551.68130558,0.00055615,120]
[354805289,1740708646572,-500.0,0.00055615,120]
[354805290,1740708646581,-500.0,0.00055615,120]
[354805291,1740708646590,-217.94265126,0.00055615,120]
[354805292,1740708646599,-500.0,0.00055615,120]
[354805293,1740708646609,-500.0,0.00055615,120]
[354805294,1740708646618,-500.0,0.00055615,120]
[354805295,1740708646628,-458.55,0.00055615,120]
[354805296,1740708646637,-500.0,0.00055615,120]
[354805297,1740708646646,-500.0,0.00055615,120]
[354805298,1740708646656,-500.0,0.00055615,120]
[354805299,1740708646666,-500.0,0.00055616,120]
[354805300,1740708646675,-510.11339301,0.00055616,120]
[354805301,1740708646685,-517.54908015,0.00055616,120]
[354805302,1740708646694,-435.76,0.00055616,120]
[354805303,1740708646704,-559.50713942,0.00055616,120]
[354805304,1740708646713,-500.0,0.00055616,120]
[354805305,1740708646722,-500.0,0.00055616,120]
[354805306,1740708646732,-500.0,0.00055616,120]
[354805307,1740708646742,-500.0,0.00055616,120]
[354805308,1740708646751,-500.0,0.00055616,120]
[354805309,1740708646760,-1364.766012,0.00055616,120]
[354805310,1740708646769,-379.297797,0.00055616,120]
[354805311,1740708646778,-151.98784067,0.00055616,120]
[354805312,1740708646787,-500.0,0.00055616,120]
[354805313,1740708646796,-500.0,0.00055616,120]
[354805314,1740708646806,-500.0,0.00055616,120]
[354805315,1740708646815,-165.6835126,0.00055616,120]
[354805316,1740708646825,-1446.15,0.00055616,120]
[354805317,1740708646834,-241.97358374,0.00055616,120]
[354805318,1740708646843,-500.0,0.00055616,120]
[354805319,1740708646852,-500.0,0.00055616,120]
[354805320,1740708646996,-209.7796194,0.00055616,120]
[354805321,1740708647006,-663.2,0.00055616,120]
[354805322,1740708647017,-500.0,0.00055616,120]
[354805323,1740708647027,-500.0,0.00055616,120]
[354805324,1740708647037,-500.0,0.00055616,120]
[354805325,1740708647047,-500.0,0.00055616,120]
[354805326,1740708647058,-345.30667398,0.00055616,120]
[354805327,1740708647068,-510.54,0.00055616,120]
[354805328,1740708647078,-500.0,0.00055616,120]
[354805329,1740708647087,-500.0,0.00055616,120]
[354805330,1740708647097,-500.0,0.00055616,120]
[354805331,1740708647106,-500.0,0.00055616,120]
[354805332,1740708647116,-500.0,0.00055616,120]
[354805333,1740708647127,-500.0,0.00055616,120]
[354805334,1740708647137,-579.62,0.00055616,120]
[354805335,1740708647147,-529.6339091,0.00055616,120]
[354805336,1740708647159,-500.0,0.00055616,120]
[354805337,1740708647174,-244.82020586,0.00055616,120]
[354805338,1740708647184,-716.47,0.00055616,120]
[354805339,1740708647194,-500.0,0.00055616,10]
[354805340,1740708647204,-500.0,0.00055616,120]
[354805341,1740708647214,-420.19403778,0.00055616,120]
[354805342,1740708647224,-231.03356022,0.00055616,120]
[354805343,1740708647234,-500.0,0.00055616,120]
[354805344,1740708647246,-500.0,0.00055616,2]
[354805345,1740708647255,-1980.51,0.00055616,120]
[354805346,1740708647265,-500.0,0.00055616,120]
[354805347,1740708647275,-500.0,0.00055616,120]
[354805348,1740708647285,-500.0,0.00055616,120]
[354805349,1740708647295,-500.0,0.00055616,120]
[354805350,1740708647305,-556.36832071,0.00055616,120]
[354805351,1740708647315,-500.0,0.00055616,120]
[354805352,1740708647325,-351.87496,0.00055616,120]
[354805353,1740708647335,-937.10484352,0.00055682,15]
[354805354,1740708647344,-1654.30962248,0.00055689,120]
[354805355,1740708647354,-234.23,0.00055833,120]
[354805356,1740708647364,-352.21368074,0.00055889,120]
[354805357,1740708647373,-500.0,0.00055889,120]
[354805358,1740708647384,-557.59,0.00055889,120]
[354805359,1740708647393,-500.0,0.00055889,120]
[354805360,1740708647403,-500.0,0.00055889,120]
[354805361,1740708647412,-500.0,0.00055889,120]
[354805362,1740708647422,-500.0,0.00055889,120]
[354805363,1740708647432,-500.0,0.00055889,120]
[354805364,1740708647441,-500.0,0.00055889,120]
[354805365,1740708647451,-500.0,0.00055889,120]
[354805366,1740708647461,-500.0,0.00055889,120]
[354805367,1740708647471,-500.0,0.00055889,120]
[354805368,1740708647481,-329.17162257,0.00055889,120]
[354805369,1740708647491,-515.73256201,0.00055889,120]
[354805370,1740708647500,-539.22041197,0.00055889,120]
[354805371,1740708647510,-500.0,0.00055889,120]
[354805372,1740708647520,-500.0,0.00055889,120]
[354805373,1740708647529,-376.74,0.00055889,120]
[354805374,1740708647539,-500.0,0.00055889,120]
[354805375,1740708647548,-500.0,0.00055889,120]
[354805376,1740708647558,-500.0,0.00055889,120]
[354805377,1740708647567,-296.90826087,0.00055889,120]
[354805378,1740708647577,-566.28,0.00055889,120]
[354805379,1740708647586,-500.0,0.00055889,120]
[354805380,1740708647595,-500.0,0.00055889,30]
[354805381,1740708647605,-500.0,0.00055889,120]
[354805382,1740708647615,-500.0,0.00055889,120]
[354805383,1740708647624,-500.0,0.00055889,120]
[354805384,1740708647633,-462.26,0.00055889,120]
[354805385,1740708647643,-500.0,0.00055889,120]
[354805386,1740708647652,-500.0,0.00055889,120]
[354805387,1740708647662,-500.0,0.00055889,120]
[354805388,1740708647671,-500.0,0.00055889,120]
[354805389,1740708647681,-1040.93,0.00055889,120]
[354805390,1740708647691,-500.0,0.00055889,120]
[354805391,1740708647700,-500.0,0.00055889,120]
[354805392,1740708647709,-500.0,0.00055889,120]
[354805393,1740708647719,-500.0,0.00055889,120]
[354805394,1740708647729,-500.0,0.00055889,120]
[354805395,1740708647739,-599.5182775,0.00055889,120]
[354805396,1740708647749,-500.0,0.00055889,120]
[354805397,1740708647759,-500.0,0.00055889,120]
[354805398,1740708647768,-500.0,0.00055889,120]
[354805399,1740708647778,-500.0,0.00055889,120]
[354805400,1740708647788,-624.98997887,0.00055889,120]
[354805401,1740708647799,-500.0,0.00055889,120]
[354805402,1740708647808,-500.0,0.00055889,120]
[354805403,1740708647818,-500.0,0.0005589,120]
[354805404,1740708647827,-500.0,0.0005589,120]
[354805405,1740708647837,-330.92,0.0005589,120]
[354805406,1740708647846,-500.0,0.0005589,120]
[354805407,1740708647855,-500.0,0.0005589,120]
[354805408,1740708647865,-500.0,0.0005589,120]
[354805409,1740708647874,-500.0,0.0005589,120]
[354805410,1740708647884,-500.0,0.0005589,120]
[354805411,1740708647898,-500.0,0.0005589,120]
[354805412,1740708647910,-1446.15,0.0005589,120]
[354805413,1740708647920,-451.30963452,0.0005589,120]
[354805414,1740708647930,-500.0,0.0005589,120]
[354805415,1740708647940,-663.2,0.0005589,120]
[354805416,1740708647950,-500.0,0.0005589,120]
[354805417,1740708647960,-310.02181486,0.0005589,120]
[354805418,1740708647971,-500.0,0.0005589,120]
[354805419,1740708647980,-500.0,0.0005589,120]
[354805420,1740708647992,-510.54,0.0005589,120]
[354805421,1740708648001,-500.0,0.0005589,120]
[354805422,1740708648010,-500.0,0.0005589,120]
[354805423,1740708648020,-500.0,0.0005589,120]
[354805424,1740708648029,-500.0,0.0005589,120]
[354805425,1740708648038,-500.0,0.0005589,120]
[354805426,1740708648048,-500.0,0.0005589,120]
[354805427,1740708648058,-579.62,0.0005589,120]
[354805428,1740708648068,-500.0,0.0005589,120]
[354805429,1740708648078,-716.47,0.0005589,120]
[354805430,1740708648088,-399.55,0.0005589,10]
[354805431,1740708648098,-500.0,0.0005589,120]
[354805432,1740708648108,-500.0,0.0005589,120]
[354805433,1740708648118,-500.0,0.0005589,2]
[354805434,1740708648128,-1980.51,0.0005589,120]
[354805435,1740708648138,-500.0,0.0005589,120]
[354805436,1740708648148,-540.74495048,0.0005589,120]
[354805437,1740708648159,-500.0,0.0005589,120]
[354805438,1740708648171,-500.0,0.0005589,120]
[354805439,1740708648183,-500.0,0.0005589,120]
[354805440,1740708648193,-168.43595331,0.000559,34]
[354805441,1740708648203,-236.80748941,0.00056162,120]
[354805442,1740708648212,-500.0,0.00056163,120]
[354805443,1740708648222,-500.0,0.00056163,120]
[354805444,1740708648231,-500.0,0.00056163,120]
[354805445,1740708648241,-500.0,0.00056163,120]
[354805446,1740708648251,-500.0,0.00056163,120]
[354805447,1740708648260,-500.0,0.00056163,120]
[354805448,1740708648269,-500.0,0.00056163,120]
[354805449,1740708648279,-599.63035012,0.00056163,120]
[354805450,1740708648288,-500.0,0.00056163,120]
[354805451,1740708648297,-500.0,0.00056163,120]
[354805452,1740708648307,-500.0,0.00056163,120]
[354805453,1740708648316,-197.92,0.00056163,120]
[354805454,1740708648326,-500.0,0.00056163,120]
[354805455,1740708648336,-500.0,0.00056163,120]
[354805456,1740708648345,-500.0,0.00056163,120]
[354805457,1740708648355,-566.28,0.00056163,120]
[354805458,1740708648364,-500.0,0.00056163,120]
[354805459,1740708648377,-198.94,0.00056163,30]
[354805460,1740708648387,-500.0,0.00056163,120]
[354805461,1740708648398,-500.0,0.00056163,120]
[354805462,1740708648407,-500.0,0.00056163,120]
[354805463,1740708648417,-500.0,0.00056163,120]
[354805464,1740708648427,-500.0,0.00056163,120]
[354805465,1740708648437,-500.0,0.00056163,120]
[354805466,1740708648447,-500.0,0.00056163,120]
[354805467,1740708648457,-1040.93,0.00056163,120]
[354805468,1740708648467,-500.0,0.00056163,120]
[354805469,1740708648476,-360.48,0.00056163,120]
[354805470,1740708648487,-383.58,0.00056163,120]
[354805471,1740708648499,-500.0,0.00056163,120]
[354805472,1740708648508,-500.0,0.00056163,120]
[354805473,1740708648518,-500.0,0.00056163,120]
[354805474,1740708648527,-500.0,0.00056163,120]
[354805475,1740708648537,-500.0,0.00056163,120]
[354805476,1740708648547,-500.0,0.00056163,120]
[354805477,1740708648556,-576.75,0.00056163,120]
[354805478,1740708648566,-415.08,0.00056163,120]
[354805479,1740708648576,-500.0,0.00056164,120]
[354805480,1740708648585,-500.0,0.00056164,120]
[354805481,1740708648595,-500.0,0.00056164,120]
[354805482,1740708648605,-500.0,0.00056164,120]
[354805483,1740708648614,-500.0,0.00056164,120]
[354805484,1740708648624,-500.0,0.00056164,120]
[354805485,1740708648633,-500.0,0.00056164,120]
[354805486,1740708648643,-500.0,0.00056164,120]
[354805487,1740708648653,-1446.15,0.00056164,120]
[354805488,1740708648663,-182.4,0.00056164,120]
[354805489,1740708648672,-663.2,0.00056164,120]
[354805490,1740708648682,-500.0,0.00056164,120]
[354805491,1740708648692,-500.0,0.00056164,120]
[354805492,1740708648702,-500.0,0.00056164,120]
[354805493,1740708648711,-510.54,0.00056164,120]
[354805494,1740708648721,-500.0,0.00056164,120]
[354805495,1740708648730,-150.86,0.00056164,120]
[354805496,1740708648740,-500.0,0.00056164,120]
[354805497,1740708648751,-500.0,0.00056164,120]
[354805498,1740708648761,-500.0,0.00056164,120]
[354805499,1740708648771,-500.0,0.00056164,120]
[354805500,1740708648780,-579.62,0.00056164,120]
[354805501,1740708648790,-459.78,0.00056164,120]
[354805502,1740708648799,-716.47,0.00056164,120]
[354805503,1740708648809,-508.07,0.00056164,120]
[354805504,1740708648818,-500.0,0.00056164,120]
[354805505,1740708648828,-500.0,0.00056164,2]
[354805506,1740708648837,-1980.51,0.00056164,120]
[354805507,1740708648846,-500.0,0.00056164,120]
[354805508,1740708648856,-500.0,0.00056164,120]
[354805509,1740708648866,-500.0,0.00056164,120]
[354805510,1740708648876,-421.3202246,0.00056164,120]
[354805511,1740708648890,-1654.30962248,0.00056268,120]
[354805512,1740708648899,-886.91701801,0.00056286,15]
[354805513,1740708648909,-937.10484352,0.00056397,15]
[354805514,1740708648918,-500.0,0.00056437,120]
[354805515,1740708648930,-500.0,0.00056437,120]
[354805516,1740708648939,-403.46495614,0.00056437,120]
[354805517,1740708648949,-299.65942401,0.00056437,120]
[354805518,1740708648960,-500.0,0.00056437,120]
[354805519,1740708648969,-500.0,0.00056437,120]
[354805520,1740708648979,-500.0,0.00056437,120]
[354805521,1740708648989,-500.0,0.00056437,120]
[354805522,1740708649001,-529.83994879,0.00056437,120]
[354805523,1740708649010,-500.0,0.00056437,120]
[354805524,1740708649020,-500.0,0.00056437,120]
[354805525,1740708649029,-500.0,0.00056437,120]
[354805526,1740708649039,-291.96111808,0.00056437,120]
[354805527,1740708649048,-566.28,0.00056437,120]
[354805528,1740708649058,-576.03,0.00056437,120]
[354805529,1740708649067,-500.0,0.00056437,120]
[354805530,1740708649077,-500.0,0.00056437,120]
[354805531,1740708649086,-500.0,0.00056437,120]
[354805532,1740708649095,-500.0,0.00056437,120]
[354805533,1740708649104,-500.0,0.00056437,120]
[354805534,1740708649113,-500.0,0.00056437,120]
[354805535,1740708649122,-500.0,0.00056437,120]
[354805536,1740708649132,-1040.93,0.00056437,120]
[354805537,1740708649141,-500.0,0.00056437,120]
[354805538,1740708649151,-500.0,0.00056437,120]
[354805539,1740708649161,-500.0,0.00056437,120]
[354805540,1740708649172,-500.0,0.00056437,120]
[354805541,1740708649182,-373.11510604,0.00056437,120]
[354805542,1740708649191,-500.0,0.00056437,120]
[354805543,1740708649201,-500.0,0.00056437,120]
[354805544,1740708649211,-3395.50738351,0.00056437,120]
[354805545,1740708649220,-500.0,0.00056438,120]
[354805546,1740708649230,-500.0,0.00056438,120]
[354805547,1740708649239,-160.08,0.00056438,120]
[354805548,1740708649249,-518.5,0.00056438,120]
[354805549,1740708649258,-204.16422206,0.00056438,120]
[354805550,1740708649269,-500.0,0.00056438,120]
[354805551,1740708649278,-500.0,0.00056438,120]
[354805552,1740708649288,-500.0,0.00056438,120]
[354805553,1740708649298,-1446.15,0.00056438,120]
[354805554,1740708649307,-663.2,0.00056438,120]
[354805555,1740708649317,-500.0,0.00056438,120]
[354805556,1740708649327,-500.0,0.00056438,120]
[354805557,1740708649336,-500.0,0.00056438,120]
[354805558,1740708649346,-510.54,0.00056438,120]
[354805559,1740708649356,-500.0,0.00056438,120]
[354805560,1740708649366,-364.98,0.00056438,120]
[354805561,1740708649376,-500.0,0.00056438,120]
[354805562,1740708649386,-500.0,0.00056438,120]
[354805563,1740708649432,-272.33235462,0.00056438,120]
[354805564,1740708649452,-579.62,0.00056438,120]
[354805565,1740708649463,-716.47,0.00056438,120]
[354805566,1740708649472,-500.0,0.00056438,120]
[354805567,1740708649482,-500.0,0.00056438,2]
[354805568,1740708649491,-1980.51,0.00056438,120]
[354805569,1740708649501,-500.0,0.00056438,120]
[354805570,1740708649512,-500.0,0.00056438,120]
[354805571,1740708649521,-500.0,0.00056438,120]
[354805572,1740708649530,-500.0,0.00056711,120]
[354805573,1740708649540,-269.06,0.00056711,120]
[354805574,1740708649550,-246.05959935,0.00056711,120]
[354805575,1740708649559,-539.97627867,0.00056711,120]
[354805576,1740708649568,-500.0,0.00056711,120]
[354805577,1740708649578,-500.0,0.00056711,120]
[354805578,1740708649587,-500.0,0.00056711,120]
[354805579,1740708649600,-500.0,0.00056711,120]
[354805580,1740708649612,-500.0,0.00056711,120]
[354805581,1740708649622,-566.28,0.00056711,120]
[354805582,1740708649632,-500.0,0.00056711,120]
[354805583,1740708649643,-500.0,0.00056711,120]
[354805584,1740708649652,-500.0,0.00056711,120]
[354805585,1740708649662,-500.0,0.00056711,120]
[354805586,1740708649672,-500.0,0.00056711,120]
[354805587,1740708649682,-500.0,0.00056711,120]
[354805588,1740708649692,-500.0,0.00056711,120]
[354805589,1740708649702,-1040.93,0.00056711,120]
[354805590,1740708649712,-500.0,0.00056711,120]
[354805591,1740708649721,-500.0,0.00056711,120]
[354805592,1740708649731,-500.0,0.00056711,120]
[354805593,1740708649740,-500.0,0.00056711,120]
[354805594,1740708649751,-514.42628076,0.00056711,120]
[354805595,1740708649760,-212.83467807,0.00056711,120]
[354805596,1740708649770,-500.0,0.00056712,120]
[354805597,1740708649779,-499.47193105,0.00056712,120]
[354805598,1740708649788,-500.0,0.00056712,120]
[354805599,1740708649797,-356.39,0.00056712,120]
[354805600,1740708649807,-500.0,0.00056712,120]
[354805601,1740708649816,-1446.15,0.00056712,120]
[354805602,1740708649826,-663.2,0.00056712,120]
[354805604,1740708649835,-500.0,0.00056712,120]
[354805606,1740708649844,-500.0,0.00056712,120]
[354805608,1740708649854,-500.0,0.00056712,120]
[354805610,1740708649863,-510.54,0.00056712,120]
[354805612,1740708649873,-500.0,0.00056712,120]
[354805614,1740708649884,-500.0,0.00056712,120]
[354805616,1740708649895,-500.0,0.00056712,120]
[354805618,1740708649905,-579.62,0.00056712,120]
[354805620,1740708649914,-716.47,0.00056712,120]
[354805622,1740708649924,-500.0,0.00056712,120]
[354805624,1740708649933,-529.79179746,0.00056712,2]
[354805626,1740708649943,-1980.51,0.00056712,120]
[354805628,1740708649952,-500.0,0.00056712,120]
[354805630,1740708649966,-500.0,0.00056712,120]
[354805632,1740708649975,-500.0,0.00056712,120]
[354805634,1740708649985,-1654.30962248,0.00056847,120]
[354805636,1740708649995,-500.0,0.00056985,120]
[354805637,1740708650005,-560.61837148,0.00056985,120]
[354805638,1740708650014,-264.65512335,0.00056985,120]
[354805639,1740708650023,-500.0,0.00056985,120]
[354805640,1740708650032,-500.0,0.00056985,120]
[354805641,1740708650042,-500.0,0.00056985,120]
[354805642,1740708650052,-566.28,0.00056985,120]
[354805643,1740708650062,-253.16269881,0.00056985,120]
[354805644,1740708650072,-500.0,0.00056985,120]
[354805645,1740708650081,-500.0,0.00056985,120]
[354805646,1740708650090,-500.0,0.00056985,120]
[354805647,1740708650100,-500.0,0.00056985,120]
[354805648,1740708650110,-500.0,0.00056985,120]
[354805649,1740708650119,-500.0,0.00056985,120]
[354805650,1740708650128,-1040.93,0.00056985,120]
[354805651,1740708650137,-500.0,0.00056985,120]
[354805652,1740708650147,-500.0,0.00056985,120]
[354805653,1740708650156,-500.0,0.00056985,120]
[354805654,1740708650165,-500.0,0.00056985,120]
[354805656,1740708650175,-288.22166062,0.00056986,120]
[354805657,1740708650184,-500.0,0.00056986,120]
[354805659,1740708650193,-500.0,0.00056986,120]
[354805661,1740708650203,-1446.15,0.00056986,120]
[354805663,1740708650212,-663.2,0.00056986,120]
[354805665,1740708650221,-500.0,0.00056986,120]
[354805667,1740708650231,-500.0,0.00056986,120]
[354805669,1740708650240,-500.0,0.00056986,120]
[354805671,1740708650250,-510.54,0.00056986,120]
[354805673,1740708650259,-500.0,0.00056986,120]
[354805675,1740708650268,-500.0,0.00056986,120]
[354805677,1740708650278,-500.0,0.00056986,120]
[354805679,1740708650287,-579.62,0.00056986,120]
[354805681,1740708650296,-716.47,0.00056986,120]
[354805683,1740708650305,-500.0,0.00056986,120]
[354805685,1740708650314,-1980.51,0.00056986,120]
[354805687,1740708650323,-256.46613168,0.00056986,120]
[354805689,1740708650332,-300.16851383,0.00056986,120]
[354805691,1740708650341,-500.0,0.00056986,120]
[354805693,1740708650350,-14999.99,0.00057,120]
[354805695,1740708650360,-405.48,0.00057,120]
[354805697,1740708650369,-937.10484352,0.00057111,15]
[354805699,1740708650378,-217.22143032,0.00057259,120]
[354805701,1740708650387,-500.0,0.00057259,120]
[354805703,1740708650397,-500.0,0.00057259,120]
[354805705,1740708650406,-500.0,0.00057259,120]
[354805707,1740708650416,-566.28,0.00057259,120]
[354805709,1740708650427,-500.0,0.00057259,120]
[354805712,1740708650436,-500.0,0.00057259,120]
[354805714,1740708650446,-452.60911302,0.00057259,120]
[354805716,1740708650456,-640.54443679,0.00057259,120]
[354805718,1740708650466,-500.0,0.00057259,120]
[354805720,1740708650476,-210.92,0.00057259,120]
[354805722,1740708650486,-1040.93,0.00057259,120]
[354805724,1740708650496,-500.0,0.00057259,120]
[354805726,1740708650506,-500.0,0.00057259,120]
[354805728,1740708650516,-500.0,0.00057259,120]
[354805730,1740708650526,-500.0,0.00057259,120]
[354805732,1740708650536,-500.0,0.0005726,120]
[354805734,1740708650546,-627.2155139,0.0005726,120]
[354805736,1740708650556,-1446.15,0.0005726,120]
[354805738,1740708650565,-663.2,0.0005726,120]
[354805740,1740708650575,-500.0,0.0005726,120]
[354805743,1740708650585,-500.0,0.0005726,120]
[354805745,1740708650595,-500.0,0.0005726,120]
[354805747,1740708650605,-510.54,0.0005726,120]
[354805749,1740708650615,-500.0,0.0005726,120]
[354805751,1740708650625,-500.0,0.0005726,120]
[354805753,1740708650635,-500.0,0.0005726,120]
[354805755,1740708650645,-579.62,0.0005726,120]
[354805757,1740708650655,-716.47,0.0005726,120]
[354805759,1740708650664,-500.0,0.0005726,120]
[354805761,1740708650674,-1980.51,0.0005726,120]
[354805763,1740708650684,-500.0,0.0005726,120]
[354805765,1740708650694,-623.91176859,0.00057333,14]
[354805767,1740708650704,-501.51640903,0.00057333,14]
[354805769,1740708650714,-168.4359533,0.000574,35]
[354805771,1740708650723,-1654.30962248,0.00057426,120]
[354805773,1740708650733,-483.0,0.00057502,30]
[354805775,1740708650742,-500.0,0.00057533,120]
[354805777,1740708650752,-500.0,0.00057533,120]
[354805779,1740708650763,-500.0,0.00057533,120]
[354805782,1740708650772,-566.28,0.00057533,120]
[354805784,1740708650782,-500.0,0.00057533,120]